fUST/lending_fUST_20250727
["ID","MTS","AMOUNT","RATE_DAILY","PERIOD"]
[375144711,1753545609643,159.906695,0.00013699,2]
[375144712,1753546025121,-3504.0459223,0.0001826,2]
[375144713,1753546025146,-154.31613596,0.00018444,2]
[375144714,1753546036254,-81.66214324,0.00018444,2]
[375144715,1753546036283,-374.0,0.000189,2]
[375144716,1753546036305,-150.0,0.000189,2]
[375144717,1753546036329,-355.65663608,0.00019341,2]
[375144718,1753546036354,-82.84150938,0.00019342,2]
[375144768,1753546232932,-302.69733596,0.00019245,2]
[375144770,1753546232941,-77.7097794,0.00019339,2]
[375144785,1753546233143,-149.49224397,0.00019339,2]
[375144793,1753546238719,-83.9975332,0.00019339,2]
[375144794,1753546238730,-381.25720826,0.00019341,2]
[375144795,1753546238741,-704.03632998,0.00019346,2]
[375144796,1753546238750,-229.04,0.00019435,3]
[375144797,1753546238763,-687.16,0.00019435,3]
[375144798,1753546238775,-500.0,0.00019438,2]
[375144799,1753546238795,-500.0,0.00019438,2]
[375144800,1753546238805,-500.0,0.00019438,2]
[375144801,1753546238815,-500.0,0.00019438,2]
[375144802,1753546238825,-502.65015297,0.00019438,2]
[375144803,1753546238837,-500.0,0.00019438,2]
[375144804,1753546238847,-500.0,0.00019438,2]
[375144805,1753546238856,-500.0,0.00019438,2]
[375144806,1753546238866,-500.0,0.00019438,2]
[375144807,1753546238877,-500.0,0.00019438,2]
[375144808,1753546238888,-500.0,0.00019438,2]
[375144809,1753546238898,-500.0,0.00019438,2]
[375144810,1753546238908,-500.0,0.00019438,2]
[375144811,1753546238918,-500.0,0.00019438,2]
[375144812,1753546238927,-500.0,0.00019438,2]
[375144813,1753546238937,-500.0,0.00019438,2]
[375144814,1753546238950,-500.0,0.00019438,2]
[375144815,1753546238959,-500.0,0.00019438,2]
[375144816,1753546238970,-500.0,0.00019438,2]
[375144817,1753546238980,-500.0,0.00019438,2]
[375144818,1753546238990,-534.60620964,0.00019438,2]
[375144819,1753546238999,-500.0,0.00019438,2]
[375144820,1753546239009,-500.0,0.00019438,2]
[375144821,1753546239019,-500.0,0.00019438,2]
[375144822,1753546239030,-243.92100878,0.00019438,2]
[375144823,1753546239042,-500.0,0.00019438,2]
[375144824,1753546239052,-500.0,0.00019438,2]
[375144825,1753546239061,-500.0,0.00019438,2]
[375144826,1753546239071,-500.0,0.00019438,2]
[375144827,1753546239081,-500.0,0.00019438,2]
[375144828,1753546239090,-500.0,0.00019438,2]
[375144829,1753546239100,-500.0,0.00019438,2]
[375144830,1753546239109,-500.0,0.00019438,2]
[375144831,1753546239119,-500.0,0.00019438,2]
[375144832,1753546239128,-500.0,0.00019438,2]
[375144833,1753546239138,-500.0,0.00019438,2]
[375144834,1753546239147,-500.0,0.00019438,2]
[375144835,1753546239156,-500.0,0.00019438,2]
[375144836,1753546239165,-500.0,0.00019438,2]
[375144837,1753546239174,-500.0,0.00019438,2]
[375144838,1753546239184,-500.0,0.00019438,2]
[375144839,1753546239194,-500.0,0.00019438,2]
[375144840,1753546239203,-500.0,0.00019438,2]
[375144841,1753546239213,-500.0,0.00019438,2]
[375144842,1753546239222,-500.0,0.00019438,2]
[375144843,1753546239232,-290.0,0.00019438,2]
[375144844,1753546239242,-500.0,0.00019438,2]
[375144845,1753546239251,-500.0,0.00019438,2]
[375144846,1753546239262,-500.0,0.00019438,2]
[375144847,1753546239272,-500.0,0.00019438,2]
[375144848,1753546239282,-500.0,0.00019438,2]
[375144849,1753546239293,-500.0,0.00019438,2]
[375144850,1753546239303,-500.0,0.00019438,2]
[375144851,1753546239312,-500.0,0.00019438,2]
[375144852,1753546239322,-500.0,0.00019438,2]
[375144853,1753546239332,-500.0,0.00019438,2]
[375144854,1753546239342,-500.0,0.00019438,2]
[375144855,1753546239352,-431.10410563,0.00019438,2]
[375144856,1753546239361,-500.0,0.00019438,2]
[375144857,1753546239372,-500.0,0.00019438,2]
[375144858,1753546239383,-500.0,0.00019438,2]
[375144859,1753546239393,-500.0,0.00019438,2]
[375144860,1753546239403,-500.0,0.00019438,2]
[375144861,1753546239413,-500.0,0.00019438,2]
[375144862,1753546239424,-500.0,0.00019438,2]
[375144863,1753546239435,-211.74331022,0.00019438,2]
[375144864,1753546239444,-460.0,0.00019438,2]
[375144865,1753546239454,-300.0,0.00019438,2]
[375144866,1753546239464,-300.0,0.00019438,2]
[375144867,1753546239474,-1200.0,0.00019438,2]
[375144868,1753546239484,-300.0,0.00019438,2]
[375144869,1753546239494,-300.0,0.00019438,2]
[375144870,1753546239503,-300.0,0.00019438,2]
[375144871,1753546239513,-500.85,0.00019438,2]
[375144872,1753546239523,-31880.66988519,0.0001944,2]
[375144873,1753546239535,-793.65200439,0.0001944,2]
[375144874,1753546239547,-460.0,0.00019441,2]
[375144875,1753546239556,-460.0,0.00019441,2]
[375144876,1753546239566,-460.0,0.00019441,2]
[375144877,1753546239575,-460.0,0.00019441,2]
[375144878,1753546239585,-460.0,0.00019441,2]
[375144879,1753546239595,-460.0,0.00019441,2]
[375144880,1753546239604,-460.0,0.00019441,2]
[375144881,1753546239614,-925.47,0.00019441,2]
[375144882,1753546239623,-460.0,0.00019442,2]
[375144883,1753546239633,-658.42,0.00019442,2]
[375144884,1753546239642,-500.0,0.00019442,2]
[375144885,1753546239652,-460.0,0.00019442,2]
[375144886,1753546239661,-460.0,0.00019442,2]
[375144887,1753546239671,-460.0,0.00019442,2]
[375144888,1753546239680,-500.0,0.00019442,2]
[375144889,1753546239690,-460.0,0.00019442,2]
[375144890,1753546239700,-513.96,0.00019442,2]
[375144891,1753546239709,-460.0,0.00019442,2]
[375144892,1753546239719,-460.0,0.00019442,2]
[375144893,1753546239728,-460.0,0.00019442,2]
[375144894,1753546239738,-460.0,0.00019442,2]
[375144895,1753546239750,-460.0,0.00019442,2]
[375144896,1753546239759,-460.0,0.00019442,2]
[375144897,1753546239769,-460.0,0.00019442,2]
[375144898,1753546239779,-460.0,0.00019442,2]
[375144899,1753546239790,-460.0,0.00019442,2]
[375144900,1753546239799,-460.0,0.00019442,2]
[375144901,1753546239809,-460.0,0.00019442,2]
[375144902,1753546239819,-579.87990335,0.00019443,2]
[375144903,1753546239828,-427.82381574,0.00019443,2]
[375144904,1753546239840,-32.17618426,0.00019443,2]
[375144905,1753546239849,-460.0,0.00019443,2]
[375144906,1753546239859,-460.0,0.00019443,2]
[375144907,1753546239868,-460.0,0.00019443,2]
[375144908,1753546239877,-460.0,0.00019443,2]
[375144909,1753546239887,-384.83249939,0.00019443,2]
[375144910,1753546239896,-460.0,0.00019443,2]
[375144911,1753546239905,-460.0,0.00019443,2]
[375144912,1753546239915,-460.0,0.00019443,2]
[375144913,1753546239927,-460.0,0.00019443,2]
[375144914,1753546239937,-460.0,0.00019443,2]
[375144915,1753546239946,-460.0,0.00019443,2]
[375144916,1753546239955,-460.0,0.00019443,2]
[375144917,1753546239966,-460.0,0.00019443,2]
[375144918,1753546239976,-460.0,0.00019443,2]
[375144919,1753546239986,-460.0,0.00019443,2]
[375144920,1753546239996,-460.0,0.00019443,2]
[375144921,1753546240006,-460.0,0.00019443,2]
[375144922,1753546240016,-93.44142176,0.00019443,2]
[375144923,1753546240028,-366.55857824,0.00019443,2]
[375144924,1753546240037,-407.11151936,0.00019443,2]
[375144925,1753546240051,-52.88848064,0.00019443,2]
[375144926,1753546240061,-460.0,0.00019443,2]
[375144927,1753546240072,-460.0,0.00019443,2]
[375144928,1753546240084,-460.0,0.00019443,2]
[375144929,1753546240094,-462.81218085,0.00019443,2]
[375144931,1753546240104,-460.0,0.00019443,2]
[375144932,1753546240115,-415.59073771,0.00019443,2]
[375144933,1753546240126,-463.81796763,0.00019443,2]
[375144934,1753546240137,-460.0,0.00019443,2]
[375144935,1753546240147,-434.86743427,0.00019443,2]
[375144936,1753546240157,-460.0,0.00019443,2]
[375144937,1753546240167,-460.0,0.00019443,2]
[375144938,1753546240177,-460.0,0.00019443,2]
[375144939,1753546240186,-460.0,0.00019443,2]
[375144940,1753546240197,-460.0,0.00019443,2]
[375144941,1753546240207,-460.0,0.00019443,2]
[375144942,1753546240216,-460.0,0.00019443,2]
[375144943,1753546240226,-460.0,0.00019443,2]
[375144944,1753546240235,-460.0,0.00019443,2]
[375144945,1753546240245,-460.0,0.00019443,2]
[375144946,1753546240255,-460.0,0.00019443,2]
[375144947,1753546240265,-460.0,0.00019443,2]
[375144948,1753546240275,-463.58872839,0.00019443,2]
[375144949,1753546240284,-460.0,0.00019443,2]
[375144950,1753546240296,-460.0,0.00019443,2]
[375144951,1753546240305,-460.85158182,0.00019443,2]
[375144952,1753546240315,-460.0,0.00019443,2]
[375144953,1753546240324,-460.0,0.00019443,2]
[375144955,1753546240334,-460.0,0.00019443,2]
[375144956,1753546240344,-460.0,0.00019443,2]
[375144957,1753546240353,-460.0,0.00019443,2]
[375144958,1753546240363,-460.0,0.00019443,2]
[375144960,1753546240372,-460.0,0.00019443,2]
[375144963,1753546240382,-460.0,0.00019443,2]
[375144964,1753546240391,-460.0,0.00019443,2]
[375144967,1753546240400,-526.70689679,0.00019443,2]
[375144969,1753546240410,-460.0,0.00019443,2]
[375144971,1753546240419,-460.0,0.00019443,2]
[375144973,1753546240429,-460.0,0.00019443,2]
[375144975,1753546240438,-460.0,0.00019443,2]
[375144978,1753546240447,-460.0,0.00019443,2]
[375144981,1753546240456,-460.0,0.00019443,2]
[375144984,1753546240466,-460.0,0.00019443,2]
[375144987,1753546240475,-460.0,0.00019443,2]
[375144990,1753546240484,-460.0,0.00019443,2]
[375144993,1753546240494,-460.0,0.00019443,2]
[375144996,1753546240503,-460.0,0.00019443,2]
[375144999,1753546240513,-654.24,0.00019443,2]
[375145002,1753546240522,-460.0,0.00019443,2]
[375145005,1753546240532,-460.0,0.00019443,2]
[375145007,1753546240542,-460.0,0.00019443,2]
[375145009,1753546240551,-460.0,0.00019443,2]
[375145011,1753546240561,-460.0,0.00019443,2]
[375145013,1753546240570,-460.0,0.00019443,2]
[375145015,1753546240580,-460.0,0.00019443,2]
[375145017,1753546240589,-460.0,0.00019443,2]
[375145019,1753546240599,-460.0,0.00019443,2]
[375145021,1753546240609,-460.0,0.00019443,2]
[375145022,1753546240619,-460.0,0.00019443,2]
[375145023,1753546240628,-460.0,0.00019443,2]
[375145025,1753546240637,-460.0,0.00019443,2]
[375145027,1753546240647,-460.0,0.00019443,2]
[375145029,1753546240656,-460.0,0.00019443,2]
[375145031,1753546240666,-460.0,0.00019443,2]
[375145033,1753546240675,-460.0,0.00019443,2]
[375145035,1753546240684,-460.0,0.00019443,2]
[375145037,1753546240694,-381.90173859,0.00019443,2]
[375145039,1753546240703,-460.0,0.00019443,2]
[375145041,1753546240713,-460.0,0.00019443,2]
[375145043,1753546240723,-460.0,0.00019443,2]
[375145045,1753546240733,-335.62250641,0.00019443,2]
[375145047,1753546240742,-460.0,0.00019443,2]
[375145049,1753546240752,-460.0,0.00019443,2]
[375145051,1753546240762,-460.0,0.00019443,2]
[375145053,1753546240771,-460.0,0.00019443,2]
[375145054,1753546240781,-460.0,0.00019443,2]
[375145055,1753546240790,-460.0,0.00019443,2]
[375145056,1753546240799,-460.0,0.00019443,2]
[375145057,1753546240809,-460.0,0.00019443,2]
[375145058,1753546240819,-460.0,0.00019443,2]
[375145059,1753546240829,-460.0,0.00019443,2]
[375145060,1753546240839,-460.0,0.00019443,2]
[375145061,1753546240848,-460.0,0.00019443,2]
[375145062,1753546240858,-460.0,0.00019444,2]
[375145063,1753546240867,-514.19380387,0.00019444,2]
[375145064,1753546240876,-460.0,0.00019444,2]
[375145065,1753546240886,-460.0,0.00019444,2]
[375145066,1753546240895,-461.52954051,0.00019444,2]
[375145067,1753546240904,-460.88251901,0.00019444,2]
[375145068,1753546240917,-269.37691507,0.00019444,2]
[375145069,1753546240930,-460.0,0.00019444,2]
[375145070,1753546240939,-460.0,0.00019444,2]
[375145071,1753546240949,-460.0,0.00019445,2]
[375145072,1753546240959,-460.0,0.00019445,2]
[375145073,1753546240968,-460.0,0.00019445,2]
[375145074,1753546240978,-460.0,0.00019445,2]
[375145075,1753546240987,-460.0,0.00019445,2]
[375145076,1753546240996,-460.0,0.00019445,2]
[375145077,1753546241006,-460.0,0.00019445,2]
[375145078,1753546241015,-460.0,0.00019445,2]
[375145079,1753546241025,-460.0,0.00019445,2]
[375145080,1753546241035,-460.0,0.00019445,2]
[375145081,1753546241045,-460.0,0.00019445,2]
[375145082,1753546241054,-460.0,0.00019445,2]
[375145083,1753546241064,-460.0,0.00019445,2]
[375145084,1753546241073,-460.0,0.00019445,2]
[375145085,1753546241083,-460.0,0.00019445,2]
[375145086,1753546241092,-460.0,0.00019445,2]
[375145087,1753546241102,-460.0,0.00019445,2]
[375145088,1753546241112,-460.0,0.00019445,2]
[375145089,1753546241122,-460.0,0.00019445,2]
[375145090,1753546241131,-369.97608048,0.00019445,2]
[375145091,1753546241144,-90.02391952,0.00019445,2]
[375145092,1753546241154,-460.0,0.00019445,2]
[375145093,1753546241163,-126.85695364,0.00019445,2]
[375145094,1753546241183,-333.14304636,0.00019445,2]
[375145095,1753546241193,-460.0,0.00019445,2]
[375145096,1753546241202,-76.85888494,0.00019445,2]
[375145097,1753546241215,-256.24136673,0.00019445,2]
[375145098,1753546241227,-126.89974833,0.00019445,2]
[375145099,1753546241236,-460.0,0.00019445,2]
[375145100,1753546241246,-460.0,0.00019445,2]
[375145101,1753546241256,-460.0,0.00019445,2]
[375145102,1753546241265,-460.0,0.00019445,2]
[375145103,1753546241275,-460.0,0.00019445,2]
[375145104,1753546241383,-248.14543876,0.00019445,2]
[375145105,1753546241395,-211.85456124,0.00019445,2]
[375145106,1753546241405,-383.35495894,0.00019445,2]
[375145107,1753546241416,-76.64504106,0.00019445,2]
[375145108,1753546241426,-460.0,0.00019445,2]
[375145109,1753546241436,-460.0,0.00019445,2]
[375145110,1753546241446,-270.82625057,0.00019445,2]
[375145111,1753546241458,-189.17374943,0.00019445,2]
[375145112,1753546241468,-460.0,0.00019445,2]
[375145113,1753546241478,-460.0,0.00019445,2]
[375145114,1753546241488,-460.0,0.00019445,2]
[375145115,1753546241497,-460.0,0.00019445,2]
[375145116,1753546241507,-460.0,0.00019445,2]
[375145117,1753546241516,-460.0,0.00019445,2]
[375145118,1753546241526,-460.0,0.00019445,2]
[375145119,1753546241536,-123.20657508,0.00019445,2]
[375145120,1753546241549,-336.79342492,0.00019445,2]
[375145121,1753546241559,-460.0,0.00019445,2]
[375145122,1753546241568,-460.0,0.00019445,2]
[375145123,1753546241578,-460.0,0.00019445,2]
[375145124,1753546241588,-1140.6,0.00019445,2]
[375145125,1753546241598,-460.0,0.00019445,2]
[375145126,1753546241607,-391.18936743,0.00019445,2]
[375145127,1753546241617,-460.0,0.00019445,2]
[375145128,1753546241627,-151.0,0.00019445,2]
[375145129,1753546241636,-460.0,0.00019445,2]
[375145130,1753546241647,-151.203535,0.00019445,2]
[375145131,1753546241656,-427.07658085,0.00019445,2]
[375145132,1753546241667,-32.92341915,0.00019445,2]
[375145133,1753546241677,-151.0,0.00019445,2]
[375145134,1753546241686,-460.0,0.00019445,2]
[375145135,1753546241695,-151.472479,0.00019445,2]
[375145136,1753546241705,-460.0,0.00019445,2]
[375145137,1753546241714,-460.0,0.00019445,2]
[375145138,1753546241723,-206.99405143,0.00019445,2]
[375145139,1753546241735,-253.00594857,0.00019445,2]
[375145140,1753546241745,-151.0,0.00019445,2]
[375145141,1753546241755,-460.0,0.00019445,2]
[375145142,1753546241764,-460.0,0.00019445,2]
[375145143,1753546241774,-400.02331393,0.00019446,2]
[375145144,1753546241785,-59.97668607,0.00019446,2]
[375145145,1753546241795,-460.0,0.00019446,2]
[375145146,1753546241805,-151.0,0.00019446,2]
[375145147,1753546241815,-151.0,0.00019446,2]
[375145148,1753546241824,-460.0,0.00019446,2]
[375145149,1753546241834,-79.56713255,0.00019446,2]
[375145150,1753546241846,-71.43286745,0.00019446,2]
[375145151,1753546241856,-457.46422373,0.00019446,2]
[375145152,1753546241872,-500.0,0.00019438,2]
[375145153,1753546241882,-2.53577627,0.00019446,2]
[375145154,1753546241893,-460.0,0.00019446,2]
[375145155,1753546241903,-151.0,0.00019446,2]
[375145156,1753546241912,-460.0,0.00019446,2]
[375145157,1753546241925,-151.0,0.00019446,2]
[375145158,1753546241937,-460.0,0.00019446,2]
[375145159,1753546241948,-460.0,0.00019446,2]
[375145160,1753546241958,-460.0,0.00019446,2]
[375145161,1753546241970,-460.0,0.00019446,2]
[375145162,1753546241981,-460.0,0.00019446,2]
[375145163,1753546241990,-460.0,0.00019446,2]
[375145164,1753546242001,-822.22,0.00019446,2]
[375145165,1753546242011,-460.0,0.00019446,2]
[375145166,1753546242021,-151.0,0.00019446,2]
[375145167,1753546242030,-160.404493,0.00019446,2]
[375145168,1753546242040,-460.0,0.00019446,2]
[375145169,1753546242049,-151.0,0.00019446,2]
[375145170,1753546242059,-462.60895151,0.00019446,2]
[375145171,1753546242068,-460.0,0.00019446,2]
[375145172,1753546242078,-151.0,0.00019446,2]
[375145173,1753546242088,-471.20609912,0.00019446,2]
[375145174,1753546242097,-460.0,0.00019446,2]
[375145175,1753546242107,-151.0,0.00019446,2]
[375145176,1753546242116,-460.0,0.00019446,2]
[375145177,1753546242125,-460.0,0.00019446,2]
[375145178,1753546242135,-500.0,0.00019446,2]
[375145179,1753546242144,-460.0,0.00019447,2]
[375145180,1753546242153,-460.0,0.00019447,2]
[375145181,1753546242162,-460.0,0.00019447,2]
[375145182,1753546242171,-460.0,0.00019447,2]
[375145183,1753546242181,-151.0,0.00019447,2]
[375145184,1753546242190,-151.0,0.00019447,2]
[375145185,1753546242200,-151.0,0.00019447,2]
[375145186,1753546242209,-151.0,0.00019447,2]
[375145187,1753546242218,-151.0,0.00019447,2]
[375145188,1753546242227,-185.873223,0.00019447,2]
[375145189,1753546242237,-185.873223,0.00019447,2]
[375145190,1753546242246,-500.0,0.00019473,2]
[375145191,1753546242257,-381.25720824,0.00019617,2]
[375145192,1753546242267,-460.0,0.00019712,2]
[375145193,1753546242276,-460.0,0.00019715,2]
[375145194,1753546242285,-925.47,0.00019715,2]
[375145195,1753546242297,-500.0,0.00019716,2]
[375145196,1753546242307,-500.0,0.00019716,2]
[375145197,1753546242316,-658.42,0.00019716,2]
[375145198,1753546242326,-513.96,0.00019716,2]
[375145199,1753546242336,-252.24036346,0.00019716,2]
[375145200,1753546242345,-268.13748334,0.00019716,2]
[375145201,1753546242355,-460.0,0.00019716,2]
[375145202,1753546242365,-460.0,0.00019716,2]
[375145203,1753546242374,-460.0,0.00019717,2]
[375145204,1753546242383,-460.0,0.00019717,2]
[375145205,1753546242393,-654.24,0.00019717,2]
[375145206,1753546242402,-305.20859057,0.00019717,2]
[375145207,1753546242412,-460.0,0.00019717,2]
[375145208,1753546242421,-460.0,0.00019717,2]
[375145209,1753546242430,-176.10048466,0.00019719,2]
[375145210,1753546242439,-572.57,0.00019719,2]
[375145211,1753546242449,-460.0,0.00019719,2]
[375145212,1753546242458,-1140.6,0.00019719,2]
[375145213,1753546242467,-460.0,0.00019719,2]
[375145214,1753546242477,-460.0,0.00019719,2]
[375145215,1753546242486,-460.0,0.00019719,2]
[375145216,1753546242497,-460.0,0.0001972,2]
[375145217,1753546242507,-822.22,0.0001972,2]
[375145218,1753546242517,-460.0,0.0001972,2]
[375145219,1753546242527,-460.0,0.0001972,2]
[375145220,1753546242538,-460.0,0.00019721,2]
[375145221,1753546242549,-381.25720824,0.00019893,2]
[375145222,1753546242559,-175.79,0.00019913,2]
[375145223,1753546242568,-229.53,0.00019986,2]
[375145224,1753546242578,-460.0,0.00019989,2]
[375145225,1753546242588,-925.47,0.00019989,2]
[375145226,1753546242599,-500.0,0.0001999,2]
[375145227,1753546242608,-500.0,0.0001999,2]
[375145228,1753546242619,-658.42,0.0001999,2]
[375145229,1753546242628,-513.96,0.0001999,2]
[375145230,1753546242638,-460.0,0.0001999,2]
[375145231,1753546242647,-439.90264945,0.0001999,2]
[375145232,1753546242657,-151.0,0.00019991,2]
[375145233,1753546242667,-151.0,0.00019991,2]
[375145234,1753546242676,-151.0,0.00019991,2]
[375145235,1753546242686,-151.0,0.00019991,2]
[375145236,1753546242696,-151.0,0.00019991,2]
[375145237,1753546242706,-151.0,0.00019991,2]
[375145238,1753546242715,-151.0,0.00019991,2]
[375145239,1753546242725,-460.0,0.00019991,2]
[375145240,1753546242734,-460.0,0.00019991,2]
[375145241,1753546242744,-654.24,0.00019991,2]
[375145242,1753546242754,-460.0,0.00019991,2]
[375145243,1753546242763,-151.0,0.00019991,2]
[375145244,1753546242773,-460.0,0.00019991,2]
[375145245,1753546242782,-151.0,0.00019993,2]
[375145246,1753546242793,-151.0,0.00019993,2]
[375145247,1753546242803,-151.283634,0.00019993,2]
[375145248,1753546242813,-151.0,0.00019993,2]
[375145249,1753546242823,-151.0,0.00019993,2]
[375145250,1753546242832,-460.0,0.00019993,2]
[375145251,1753546242841,-151.0,0.00019993,2]
[375145252,1753546242851,-151.0,0.00019993,2]
[375145253,1753546242861,-1140.6,0.00019993,2]
[375145254,1753546242872,-460.0,0.00019993,2]
[375145255,1753546242882,-460.0,0.00019993,2]
[375145256,1753546242892,-460.0,0.00019994,2]
[375145257,1753546242902,-822.22,0.00019994,2]
[375145258,1753546242910,-460.0,0.00019994,2]
[375145259,1753546242919,-460.0,0.00019994,2]
[375145260,1753546242934,-151.0,0.00019994,2]
[375145261,1753546242944,-460.0,0.00019995,2]
[375145262,1753546242954,-151.68743069,0.0002,2]
[375145263,1753546242966,-1000.0,0.00020021,2]
[375145264,1753546242975,-311.19955655,0.00020223,2]
[375145265,1753546242985,-151.0,0.00020227,2]
[375145266,1753546242996,-151.429552,0.00020227,2]
[375145267,1753546243005,-151.0,0.00020227,2]
[375145268,1753546243015,-151.454004,0.00020227,2]
[375145269,1753546243025,-151.0,0.00020227,2]
[375145270,1753546243035,-151.0,0.00020227,2]
[375145271,1753546243046,-429.9056391,0.00020237,2]
[375145272,1753546243055,-429.9056391,0.00020237,2]
[375145273,1753546243065,-429.9056391,0.00020237,2]
[375145274,1753546243074,-429.2055371,0.00020237,2]
[375145275,1753546243084,-460.0,0.00020263,2]
[375145276,1753546243093,-925.47,0.00020263,2]
[375145277,1753546243103,-500.0,0.00020264,2]
[375145278,1753546243112,-500.0,0.00020264,2]
[375145279,1753546243122,-658.42,0.00020264,2]
[375145280,1753546243131,-513.96,0.00020264,2]
[375145281,1753546243140,-460.0,0.00020264,2]
[375145282,1753546243150,-654.24,0.00020265,2]
[375145283,1753546243159,-460.0,0.00020265,2]
[375145285,1753546243169,-460.0,0.00020265,2]
[375145286,1753546243179,-249.13,0.00020267,2]
[375145287,1753546243189,-1140.6,0.00020267,2]
[375145288,1753546243200,-579.6129751,0.00020267,2]
[375145289,1753546243210,-460.0,0.00020267,2]
[375145291,1753546243219,-460.0,0.00020268,2]
[375145292,1753546243230,-822.22,0.00020268,2]
[375145293,1753546243239,-460.0,0.00020268,2]
[375145294,1753546243249,-460.0,0.00020268,2]
[375145295,1753546243259,-460.0,0.00020269,2]
[375145296,1753546243269,-151.0,0.00020269,2]
[375145297,1753546243279,-151.0,0.00020269,2]
[375145298,1753546243288,-151.0,0.00020269,2]
[375145299,1753546243299,-151.0,0.00020269,2]
[375145300,1753546243308,-151.0,0.00020269,2]
[375145301,1753546243318,-185.873223,0.00020269,2]
[375145302,1753546243327,-185.873223,0.00020269,2]
[375145303,1753546243337,-151.0,0.0002027,2]
[375145304,1753546243346,-151.0,0.0002027,2]
[375145305,1753546243356,-151.0,0.0002027,2]
[375145306,1753546243365,-151.0,0.0002027,2]
[375145307,1753546243375,-151.0,0.0002027,2]
[375145308,1753546243384,-151.0,0.0002027,2]
[375145309,1753546243394,-284.265221,0.00020304,8]
[375145310,1753546243403,-3609.07108579,0.00020334,2]
[375145311,1753546243413,-704.03632998,0.00020373,2]
[375145312,1753546243423,-460.0,0.00020537,2]
[375145313,1753546243435,-925.47,0.00020537,2]
[375145314,1753546243447,-500.0,0.00020538,2]
[375145315,1753546243457,-500.0,0.00020538,2]
[375145316,1753546243467,-658.42,0.00020538,2]
[375145317,1753546243478,-513.96,0.00020538,2]
[375145318,1753546243488,-460.0,0.00020538,2]
[375145319,1753546243497,-654.24,0.00020539,2]
[375145320,1753546243507,-460.0,0.00020539,2]
[375145321,1753546243517,-460.0,0.00020539,2]
[375145322,1753546243527,-1140.6,0.00020541,2]
[375145323,1753546243537,-460.0,0.00020541,2]
[375145324,1753546243549,-151.0,0.00020542,2]
[375145325,1753546243558,-151.0,0.00020542,2]
[375145326,1753546243568,-219.633511,0.00020542,2]
[375145327,1753546243577,-460.0,0.00020542,2]
[375145328,1753546243587,-822.22,0.00020542,2]
[375145329,1753546243597,-460.0,0.00020542,2]
[375145330,1753546243607,-460.0,0.00020542,2]
[375145331,1753546243617,-460.0,0.00020543,2]
[375145332,1753546243627,-151.0,0.00020543,2]
[375145333,1753546243637,-1500.0,0.00020568,2]
[375145334,1753546243646,-1667.12391378,0.00020638,2]
[375145335,1753546243656,-526.41699184,0.00020692,2]
[375145336,1753546243666,-160.0,0.00020692,2]
[375145337,1753546243676,-215.9757969,0.00020692,2]